fUSD/lending_fUSD_20250125
["ID","MTS","AMOUNT","RATE_DAILY","PERIOD"]
[350337144,1737802249085,-500.0,0.00018487,2]
[350337145,1737802249103,-500.0,0.00018487,2]
[350337146,1737802249115,-500.0,0.00018487,2]
[350337147,1737802249127,-1115.57,0.00018487,2]
[350337148,1737802249140,-500.0,0.00018487,2]
[350337149,1737802249152,-500.0,0.00018487,2]
[350337150,1737802249164,-823.1,0.00018487,2]
[350337151,1737802249176,-500.0,0.00018487,2]
[350337152,1737802249188,-568.87,0.00018487,2]
[350337153,1737802249199,-589.48,0.00018487,2]
[350337154,1737802249211,-994.33,0.00018487,2]
[350337155,1737802249223,-885.18,0.00018487,2]
[350337156,1737802249235,-500.0,0.00018488,2]
[350337157,1737802249250,-500.0,0.00018488,2]
[350337158,1737802249261,-500.0,0.00018488,2]
[350337159,1737802249273,-500.0,0.00018488,2]
[350337160,1737802249287,-500.0,0.00018488,2]
[350337161,1737802249299,-500.0,0.00018488,2]
[350337162,1737802249311,-8613.14024369,0.00018489,2]
[350337163,1737802249324,-158.75660413,0.000185,2]
[350337164,1737802249336,-3056.49946591,0.00018555,2]
[350337165,1737802249350,-500.0,0.0001856,2]
[350337166,1737802249362,-500.0,0.0001856,2]
[350337167,1737802249376,-500.0,0.0001856,2]
[350337168,1737802249389,-532.03,0.0001856,2]
[350337169,1737802249400,-500.0,0.0001856,2]
[350337170,1737802249412,-583.42812666,0.0001856,2]
[350337171,1737802249424,-500.0,0.0001856,2]
[350337172,1737802249436,-988.76,0.0001856,2]
[350337173,1737802249446,-500.0,0.0001856,2]
[350337174,1737802249455,-1721.11,0.0001856,2]
[350337175,1737802249464,-500.0,0.0001856,2]
[350337176,1737802249473,-1293.15,0.0001856,2]
[350337177,1737802249482,-500.0,0.00018561,2]
[350337178,1737802249491,-500.0,0.00018561,2]
[350337179,1737802249502,-500.0,0.00018561,2]
[350337180,1737802249511,-500.0,0.00018561,2]
[350337181,1737802249521,-500.0,0.00018561,2]
[350337182,1737802249530,-197.738714,0.00018561,2]
[350337183,1737802249540,-500.0,0.00018561,2]
[350337184,1737802249550,-500.0,0.00018561,2]
[350337185,1737802249561,-500.0,0.00018561,2]
[350337186,1737802249571,-500.0,0.00018561,2]
[350337187,1737802249580,-160.071777,0.00018561,2]
[350337188,1737802249590,-500.0,0.00018561,2]
[350337189,1737802249599,-500.0,0.00018561,2]
[350337190,1737802249608,-500.0,0.00018561,2]
[350337191,1737802249618,-500.0,0.00018561,2]
[350337192,1737802249628,-500.0,0.00018561,2]
[350337193,1737802249637,-500.0,0.00018561,2]
[350337194,1737802249646,-500.0,0.00018561,2]
[350337195,1737802249656,-500.0,0.00018561,2]
[350337196,1737802249665,-500.0,0.00018561,2]
[350337197,1737802249675,-500.0,0.00018561,2]
[350337198,1737802249684,-500.0,0.00018561,2]
[350337199,1737802249694,-500.0,0.00018561,2]
[350337200,1737802249704,-500.0,0.00018561,2]
[350337201,1737802249714,-500.0,0.00018561,2]
[350337202,1737802249724,-500.0,0.00018561,2]
[350337203,1737802249733,-500.0,0.00018561,2]
[350337204,1737802249743,-500.0,0.00018561,2]
[350337205,1737802249753,-500.0,0.00018561,2]
[350337206,1737802250001,-291.9271839,0.00018561,2]
[350337207,1737802250022,-500.0,0.00018561,2]
[350337208,1737802250034,-500.0,0.00018561,2]
[350337209,1737802250043,-500.0,0.00018561,2]
[350337210,1737802250053,-2064.77,0.00018561,2]
[350337211,1737802250063,-500.0,0.00018561,2]
[350337212,1737802250072,-500.0,0.00018561,2]
[350337213,1737802250081,-500.0,0.00018561,2]
[350337214,1737802250091,-500.0,0.00018561,2]
[350337215,1737802250100,-592.05,0.00018561,2]
[350337216,1737802250110,-500.0,0.00018561,2]
[350337217,1737802250119,-500.0,0.00018561,2]
[350337218,1737802250129,-856.14,0.00018561,2]
[350337219,1737802250139,-500.0,0.00018561,2]
[350337220,1737802250148,-500.0,0.00018561,2]
[350337221,1737802250157,-1205.82,0.00018561,2]
[350337222,1737802250166,-2631.17,0.00018561,2]
[350337223,1737802250175,-1109.67,0.00018561,2]
[350337224,1737802250184,-500.0,0.00018561,2]
[350337225,1737802250194,-500.0,0.00018561,2]
[350337226,1737802250203,-520.99,0.00018561,2]
[350337227,1737802250213,-500.0,0.00018561,2]
[350337228,1737802250223,-1137.71,0.00018561,2]
[350337229,1737802250233,-500.0,0.00018561,2]
[350337230,1737802250243,-500.0,0.00018561,2]
[350337231,1737802250255,-1507.51,0.00018561,2]
[350337232,1737802250264,-500.0,0.00018561,2]
[350337233,1737802250274,-1225.87,0.00018561,2]
[350337234,1737802250283,-1774.01,0.00018561,2]
[350337235,1737802250294,-500.0,0.00018561,2]
[350337236,1737802250303,-2160.4,0.00018561,2]
[350337237,1737802250313,-500.0,0.00018561,2]
[350337238,1737802250323,-500.0,0.00018561,2]
[350337239,1737802250333,-500.0,0.00018561,2]
[350337240,1737802250343,-500.0,0.00018561,2]
[350337241,1737802250353,-1527.94,0.00018561,2]
[350337242,1737802250363,-537.2,0.00018561,2]
[350337243,1737802250372,-500.0,0.00018561,2]
[350337244,1737802250381,-500.0,0.00018561,2]
[350337245,1737802250391,-500.0,0.00018561,2]
[350337246,1737802250400,-1839.61,0.00018561,2]
[350337247,1737802250410,-360.63,0.00018561,2]
[350337248,1737802250420,-508.65,0.00018561,2]
[350337249,1737802250429,-1334.52,0.00018561,2]
[350337250,1737802250438,-500.0,0.00018561,2]
[350337251,1737802250447,-500.0,0.00018561,2]
[350337252,1737802250457,-500.0,0.00018561,2]
[350337253,1737802250466,-1109.79,0.00018561,2]
[350337254,1737802250476,-1380.92,0.00018561,2]
[350337255,1737802250485,-500.0,0.00018561,2]
[350337256,1737802250495,-903.85,0.00018561,2]
[350337257,1737802250504,-500.0,0.00018561,2]
[350337258,1737802250513,-500.0,0.00018561,2]
[350337259,1737802250523,-1513.23,0.00018561,2]
[350337260,1737802250533,-500.0,0.00018561,2]
[350337261,1737802250542,-500.0,0.00018561,2]
[350337262,1737802250551,-500.0,0.00018561,2]
[350337263,1737802250560,-500.0,0.00018561,2]
[350337264,1737802250570,-500.0,0.00018561,2]
[350337265,1737802250579,-593.47,0.00018561,2]
[350337266,1737802250589,-500.0,0.00018561,2]
[350337267,1737802250599,-500.0,0.00018561,2]
[350337268,1737802250608,-500.0,0.00018561,2]
[350337269,1737802250617,-500.0,0.00018561,2]
[350337270,1737802250626,-511.33,0.00018561,2]
[350337271,1737802250636,-500.0,0.00018561,2]
[350337272,1737802250645,-500.0,0.00018561,2]
[350337273,1737802250654,-500.0,0.00018561,2]
[350337274,1737802250663,-500.0,0.00018561,2]
[350337275,1737802250672,-548.68,0.00018561,2]
[350337276,1737802250682,-500.0,0.00018561,2]
[350337277,1737802250692,-520.32,0.00018561,2]
[350337278,1737802250701,-592.24,0.00018561,2]
[350337279,1737802250710,-585.53,0.00018561,2]
[350337280,1737802250720,-242.54820446,0.00018561,2]
[350337281,1737802250730,-920.68,0.00018561,2]
[350337282,1737802250739,-1568.47,0.00018561,2]
[350337283,1737802250749,-500.0,0.00018561,2]
[350337284,1737802250758,-500.0,0.00018561,2]
[350337285,1737802250768,-754.85,0.00018561,2]
[350337286,1737802250778,-697.11,0.00018561,2]
[350337287,1737802250788,-507.35,0.00018561,2]
[350337288,1737802250797,-500.0,0.00018561,2]
[350337289,1737802250806,-500.0,0.00018561,2]
[350337290,1737802250815,-1533.71,0.00018561,2]
[350337291,1737802250824,-500.0,0.00018561,2]
[350337292,1737802250834,-660.4,0.00018561,2]
[350337293,1737802250844,-500.0,0.00018561,2]
[350337294,1737802250854,-2059.31902583,0.0001859,2]
[350337295,1737802250863,-500.0,0.00018624,2]
[350337296,1737802250873,-500.0,0.00018624,2]
[350337297,1737802250883,-500.0,0.00018624,2]
[350337298,1737802250893,-500.0,0.00018624,2]
[350337299,1737802250903,-500.0,0.00018624,2]
[350337300,1737802250913,-500.0,0.00018624,2]
[350337301,1737802250922,-500.0,0.00018624,2]
[350337302,1737802250932,-500.0,0.00018624,2]
[350337303,1737802250941,-500.0,0.00018624,2]
[350337304,1737802250950,-500.0,0.00018624,2]
[350337305,1737802250960,-500.0,0.00018624,2]
[350337306,1737802250969,-500.0,0.00018624,2]
[350337307,1737802250979,-500.0,0.00018624,2]
[350337308,1737802250988,-1115.57,0.00018624,2]
[350337309,1737802250998,-500.0,0.00018624,2]
[350337310,1737802251008,-500.0,0.00018624,2]
[350337311,1737802251018,-823.1,0.00018624,2]
[350337312,1737802251027,-500.0,0.00018624,2]
[350337313,1737802251036,-568.87,0.00018624,2]
[350337314,1737802251046,-994.33,0.00018624,2]
[350337315,1737802251056,-885.18,0.00018624,2]
[350337316,1737802251066,-500.0,0.00018625,2]
[350337317,1737802251075,-1000.0,0.00018625,2]
[350337318,1737802251085,-500.0,0.00018625,2]
[350337319,1737802251094,-500.0,0.00018625,2]
[350337320,1737802251104,-222.91393588,0.00018625,2]
[350337321,1737802251114,-1000.0,0.00018629,2]
[350337322,1737802251123,-500.0,0.00018697,2]
[350337323,1737802251133,-500.0,0.00018697,2]
[350337324,1737802251143,-500.0,0.00018697,2]
[350337325,1737802251152,-532.03,0.00018697,2]
[350337326,1737802251162,-500.0,0.00018697,2]
[350337327,1737802251171,-500.0,0.00018697,2]
[350337328,1737802251180,-988.76,0.00018697,2]
[350337329,1737802251190,-500.0,0.00018697,2]
[350337330,1737802251200,-500.0,0.00018697,2]
[350337331,1737802251209,-1721.11,0.00018697,2]
[350337332,1737802251218,-500.0,0.00018697,2]
[350337333,1737802251228,-1293.15,0.00018697,2]
[350337334,1737802251237,-500.0,0.00018698,2]
[350337335,1737802251250,-500.0,0.00018698,2]
[350337336,1737802251259,-500.0,0.00018698,2]
[350337337,1737802251269,-500.0,0.00018698,2]
[350337338,1737802251278,-500.0,0.00018698,2]
[350337339,1737802251289,-197.738714,0.00018698,2]
[350337340,1737802251298,-500.0,0.00018698,2]
[350337341,1737802251307,-500.0,0.00018698,2]
[350337342,1737802251318,-500.0,0.00018698,2]
[350337343,1737802251327,-500.0,0.00018698,2]
[350337344,1737802251336,-160.071777,0.00018698,2]
[350337345,1737802251346,-500.0,0.00018698,2]
[350337346,1737802251356,-500.0,0.00018698,2]
[350337347,1737802251365,-500.0,0.00018698,2]
[350337348,1737802251374,-500.0,0.00018698,2]
[350337349,1737802251383,-500.0,0.00018698,2]
[350337350,1737802251393,-500.0,0.00018698,2]
[350337351,1737802251403,-500.0,0.00018698,2]
[350337352,1737802251415,-500.0,0.00018698,2]
[350337353,1737802251425,-500.0,0.00018698,2]
[350337354,1737802251434,-500.0,0.00018698,2]
[350337355,1737802251443,-500.0,0.00018698,2]
[350337356,1737802251452,-500.0,0.00018698,2]
[350337357,1737802251461,-500.0,0.00018698,2]
[350337358,1737802251472,-500.0,0.00018698,2]
[350337359,1737802251481,-500.0,0.00018698,2]
[350337360,1737802251492,-500.0,0.00018698,2]
[350337361,1737802251501,-500.0,0.00018698,2]
[350337362,1737802251511,-500.0,0.00018698,2]
[350337363,1737802251520,-500.0,0.00018698,2]
[350337364,1737802251530,-500.0,0.00018698,2]
[350337365,1737802251540,-500.0,0.00018698,2]
[350337366,1737802251550,-2064.77,0.00018698,2]
[350337367,1737802251560,-500.0,0.00018698,2]
[350337368,1737802251570,-500.0,0.00018698,2]
[350337369,1737802251579,-500.0,0.00018698,2]
[350337370,1737802251590,-500.0,0.00018698,2]
[350337371,1737802251599,-592.05,0.00018698,2]
[350337372,1737802251609,-500.0,0.00018698,2]
[350337373,1737802251618,-500.0,0.00018698,2]
[350337374,1737802251628,-856.14,0.00018698,2]
[350337375,1737802251638,-500.0,0.00018698,2]
[350337376,1737802251647,-500.0,0.00018698,2]
[350337377,1737802251656,-1205.82,0.00018698,2]
[350337378,1737802251666,-2631.17,0.00018698,2]
[350337379,1737802251675,-1109.67,0.00018698,2]
[350337380,1737802251685,-500.0,0.00018698,2]
[350337381,1737802251694,-500.0,0.00018698,2]
[350337382,1737802251704,-520.99,0.00018698,2]
[350337383,1737802251713,-500.0,0.00018698,2]
[350337384,1737802251723,-1137.71,0.00018698,2]
[350337385,1737802251733,-500.0,0.00018698,2]
[350337386,1737802251743,-500.0,0.00018698,2]
[350337387,1737802251752,-1507.51,0.00018698,2]
[350337388,1737802251762,-575.76907641,0.00018698,2]
[350337389,1737802251772,-1225.87,0.00018698,2]
[350337390,1737802251782,-1774.01,0.00018698,2]
[350337391,1737802251791,-500.0,0.00018698,2]
[350337392,1737802251801,-2160.4,0.00018698,2]
[350337393,1737802251810,-378.37969355,0.00018698,2]
[350337394,1737802251820,-500.0,0.00018698,2]
[350337395,1737802251830,-500.0,0.00018698,2]
[350337396,1737802251839,-500.0,0.00018698,2]
[350337397,1737802251850,-1527.94,0.00018698,2]
[350337398,1737802251859,-537.2,0.00018698,2]
[350337399,1737802251869,-500.0,0.00018698,2]
[350337400,1737802251878,-500.0,0.00018698,2]
[350337401,1737802251888,-500.0,0.00018698,2]
[350337402,1737802251898,-1839.61,0.00018698,2]
[350337403,1737802251907,-508.65,0.00018698,2]
[350337404,1737802251917,-1334.52,0.00018698,2]
[350337405,1737802251927,-500.0,0.00018698,2]
[350337406,1737802251937,-500.0,0.00018698,2]
[350337407,1737802251947,-500.0,0.00018698,2]
[350337408,1737802251957,-1109.79,0.00018698,2]
[350337409,1737802251968,-1380.92,0.00018698,2]
[350337410,1737802251978,-500.0,0.00018698,2]
[350337411,1737802251988,-903.85,0.00018698,2]
[350337412,1737802251998,-500.0,0.00018698,2]
[350337413,1737802252008,-500.0,0.00018698,2]
[350337414,1737802252018,-1513.23,0.00018698,2]
[350337415,1737802252028,-500.0,0.00018698,2]
[350337416,1737802252037,-572.43397779,0.00018698,2]
[350337417,1737802252047,-500.0,0.00018698,2]
[350337418,1737802252056,-500.0,0.00018698,2]
[350337419,1737802252067,-500.0,0.00018698,2]
[350337420,1737802252076,-593.47,0.00018698,2]
[350337421,1737802252086,-500.0,0.00018698,2]
[350337422,1737802252096,-500.0,0.00018698,2]
[350337423,1737802252105,-500.0,0.00018698,2]
[350337424,1737802252116,-500.0,0.00018698,2]
[350337425,1737802252126,-511.33,0.00018698,2]
[350337426,1737802252136,-500.0,0.00018698,2]
[350337427,1737802252145,-500.0,0.00018698,2]
[350337428,1737802252155,-500.0,0.00018698,2]
[350337429,1737802252164,-500.0,0.00018698,2]
[350337430,1737802252175,-548.68,0.00018698,2]
[350337431,1737802252184,-500.0,0.00018698,2]
[350337432,1737802252194,-520.32,0.00018698,2]
[350337433,1737802252204,-592.24,0.00018698,2]
[350337434,1737802252214,-585.53,0.00018698,2]
[350337435,1737802252223,-920.68,0.00018698,2]
[350337436,1737802252233,-1568.47,0.00018698,2]
[350337437,1737802252244,-500.0,0.00018698,2]
[350337438,1737802252256,-233.6499346,0.00018698,2]
[350337439,1737802252266,-754.85,0.00018698,2]
[350337440,1737802252276,-697.11,0.00018698,2]
[350337441,1737802252287,-507.35,0.00018698,2]
[350337442,1737802252296,-500.0,0.00018698,2]
[350337443,1737802252305,-500.0,0.00018698,2]
[350337444,1737802252315,-1533.71,0.00018698,2]
[350337445,1737802252327,-500.0,0.00018698,2]
[350337446,1737802252336,-660.4,0.00018698,2]
[350337447,1737802252346,-500.0,0.00018698,2]
[350337448,1737802252355,-533.50180783,0.00018723,2]
[350337449,1737802252366,-2059.31902583,0.00018728,2]
[350337450,1737802252376,-1003.36,0.00018751,2]
[350337451,1737802252385,-500.0,0.0001876,2]
[350337452,1737802252394,-500.0,0.00018761,2]
[350337453,1737802252404,-500.0,0.00018761,2]
[350337454,1737802252414,-500.0,0.00018761,2]
[350337455,1737802252423,-500.0,0.00018761,2]
[350337456,1737802252433,-500.0,0.00018761,2]
[350337457,1737802252443,-500.0,0.00018761,2]
[350337458,1737802252452,-500.0,0.00018761,2]
[350337459,1737802252461,-500.0,0.00018761,2]
[350337460,1737802252471,-500.0,0.00018761,2]
[350337461,1737802252480,-500.0,0.00018761,2]
[350337462,1737802252490,-500.0,0.00018761,2]
[350337463,1737802252499,-500.0,0.00018761,2]
[350337464,1737802252508,-500.0,0.00018761,2]
[350337465,1737802252517,-1115.57,0.00018761,2]
[350337466,1737802252527,-500.0,0.00018761,2]
[350337467,1737802252536,-500.0,0.00018761,2]
[350337468,1737802252545,-823.1,0.00018761,2]
[350337469,1737802252555,-568.87,0.00018761,2]
[350337470,1737802252565,-994.33,0.00018761,2]
[350337471,1737802252576,-885.18,0.00018761,2]
[350337472,1737802252586,-203.546478,0.00018761,2]
[350337473,1737802252596,-153.748015,0.00018761,2]
[350337474,1737802252605,-151.987157,0.00018761,2]
[350337475,1737802252615,-151.0,0.00018761,2]
[350337476,1737802252625,-151.0,0.00018761,2]
[350337477,1737802252635,-151.0,0.00018761,2]
[350337478,1737802252644,-151.0,0.00018761,2]
[350337479,1737802252655,-500.0,0.00018762,2]
[350337480,1737802252665,-500.0,0.00018762,2]
[350337481,1737802252674,-500.0,0.00018762,2]
[350337482,1737802252685,-1018.94489109,0.00018817,2]
[350337483,1737802252695,-8613.14024369,0.00018833,2]
[350337484,1737802252704,-500.0,0.00018834,2]
[350337485,1737802252715,-500.0,0.00018834,2]
[350337486,1737802252725,-500.0,0.00018834,2]
[350337487,1737802252735,-532.03,0.00018834,2]
[350337488,1737802252744,-500.0,0.00018834,2]
[350337489,1737802252754,-500.0,0.00018834,2]
[350337490,1737802252763,-988.76,0.00018834,2]
[350337491,1737802252773,-500.0,0.00018834,2]
[350337492,1737802252782,-1721.11,0.00018834,2]
[350337493,1737802252792,-500.0,0.00018834,2]
[350337494,1737802252802,-1293.15,0.00018834,2]
[350337495,1737802252812,-500.0,0.00018835,2]
[350337496,1737802252821,-500.0,0.00018835,2]
[350337497,1737802252830,-500.0,0.00018835,2]
[350337498,1737802252840,-500.0,0.00018835,2]
[350337499,1737802252849,-500.0,0.00018835,2]
[350337500,1737802252859,-197.738714,0.00018835,2]
[350337501,1737802252868,-500.0,0.00018835,2]
[350337502,1737802252877,-500.0,0.00018835,2]
[350337503,1737802252887,-500.0,0.00018835,2]
[350337504,1737802252896,-500.0,0.00018835,2]
[350337505,1737802252906,-160.071777,0.00018835,2]
[350337506,1737802252916,-500.0,0.00018835,2]
[350337507,1737802252926,-500.0,0.00018835,2]
[350337508,1737802252936,-500.0,0.00018835,2]
[350337509,1737802252946,-500.0,0.00018835,2]
[350337510,1737802252956,-500.0,0.00018835,2]
[350337511,1737802252965,-500.0,0.00018835,2]
[350337512,1737802252975,-500.0,0.00018835,2]
[350337513,1737802252984,-500.0,0.00018835,2]
[350337514,1737802252994,-500.0,0.00018835,2]
[350337515,1737802253003,-500.0,0.00018835,2]
[350337516,1737802253013,-500.0,0.00018835,2]
[350337517,1737802253022,-500.0,0.00018835,2]
[350337518,1737802253033,-500.0,0.00018835,2]
[350337519,1737802253043,-500.0,0.00018835,2]
[350337520,1737802253052,-500.0,0.00018835,2]
[350337521,1737802253062,-500.0,0.00018835,2]
[350337522,1737802253071,-500.0,0.00018835,2]
[350337523,1737802253081,-500.0,0.00018835,2]
[350337524,1737802253092,-500.0,0.00018835,2]
[350337525,1737802253102,-500.0,0.00018835,2]
[350337526,1737802253113,-500.0,0.00018835,2]
[350337527,1737802253123,-2064.77,0.00018835,2]
[350337528,1737802253132,-626.20643657,0.00018835,2]
[350337529,1737802253266,-500.0,0.00018835,2]
[350337530,1737802253279,-500.0,0.00018835,2]
[350337531,1737802253290,-500.0,0.00018835,2]
[350337532,1737802253300,-592.05,0.00018835,2]
[350337533,1737802253310,-500.0,0.00018835,2]
[350337534,1737802253325,-500.0,0.00018835,2]
[350337535,1737802253335,-856.14,0.00018835,2]
[350337536,1737802253345,-500.0,0.00018835,2]
[350337537,1737802253355,-500.0,0.00018835,2]
[350337538,1737802253364,-1205.82,0.00018835,2]
[350337539,1737802253374,-2631.17,0.00018835,2]
[350337540,1737802253383,-1109.67,0.00018835,2]
[350337541,1737802253394,-500.0,0.00018835,2]
[350337542,1737802253403,-500.0,0.00018835,2]
[350337543,1737802253413,-520.99,0.00018835,2]
[350337544,1737802253424,-500.0,0.00018835,2]
[350337545,1737802253436,-1137.71,0.00018835,2]
[350337546,1737802253446,-500.0,0.00018835,2]
[350337547,1737802253456,-500.0,0.00018835,2]
[350337548,1737802253466,-1507.51,0.00018835,2]
[350337549,1737802253476,-1225.87,0.00018835,2]
[350337550,1737802253486,-1774.01,0.00018835,2]
[350337551,1737802253496,-500.0,0.00018835,2]
[350337552,1737802253505,-2160.4,0.00018835,2]
[350337553,1737802253516,-500.0,0.00018835,2]
[350337554,1737802253525,-500.0,0.00018835,2]
[350337555,1737802253536,-500.0,0.00018835,2]
[350337556,1737802253546,-1527.94,0.00018835,2]
[350337557,1737802253556,-537.2,0.00018835,2]
[350337558,1737802253566,-500.0,0.00018835,2]
[350337559,1737802253575,-500.0,0.00018835,2]
[350337560,1737802253584,-500.0,0.00018835,2]
[350337561,1737802253594,-151.0,0.00018835,2]
[350337562,1737802253606,-151.0,0.00018835,2]
[350337563,1737802253616,-1839.61,0.00018835,2]
[350337564,1737802253625,-508.65,0.00018835,2]
[350337565,1737802253634,-1334.52,0.00018835,2]
[350337566,1737802253644,-151.0,0.00018835,2]
[350337567,1737802253653,-500.0,0.00018835,2]
[350337568,1737802253663,-500.0,0.00018835,2]
[350337569,1737802253671,-151.0,0.00018835,2]
[350337570,1737802253683,-500.0,0.00018835,2]
[350337571,1737802253692,-1109.79,0.00018835,2]
[350337572,1737802253702,-1380.92,0.00018835,2]
[350337573,1737802253711,-500.0,0.00018835,2]
[350337574,1737802253720,-903.85,0.00018835,2]
[350337575,1737802253730,-500.0,0.00018835,2]
[350337576,1737802253739,-500.0,0.00018835,2]
[350337577,1737802253749,-1513.23,0.00018835,2]
[350337578,1737802253758,-151.0,0.00018835,2]
[350337579,1737802253768,-500.0,0.00018835,2]
[350337580,1737802253777,-500.0,0.00018835,2]
[350337581,1737802253787,-500.0,0.00018835,2]
[350337582,1737802253797,-500.0,0.00018835,2]
[350337583,1737802253806,-593.47,0.00018835,2]
[350337584,1737802253816,-500.0,0.00018835,2]
[350337585,1737802253825,-500.0,0.00018835,2]
[350337586,1737802253835,-500.0,0.00018835,2]
[350337587,1737802253844,-500.0,0.00018835,2]
[350337588,1737802253854,-511.33,0.00018835,2]
[350337589,1737802253864,-500.0,0.00018835,2]
[350337590,1737802253873,-500.0,0.00018835,2]
[350337591,1737802253883,-500.0,0.00018835,2]
[350337592,1737802253893,-500.0,0.00018835,2]
[350337593,1737802253903,-548.68,0.00018835,2]
[350337594,1737802253912,-500.0,0.00018835,2]
[350337595,1737802253922,-520.32,0.00018835,2]
[350337596,1737802253935,-592.24,0.00018835,2]
[350337597,1737802253944,-585.53,0.00018835,2]
[350337598,1737802253954,-920.68,0.00018835,2]
[350337599,1737802253964,-1568.47,0.00018835,2]
[350337600,1737802253973,-500.0,0.00018835,2]
[350337601,1737802253983,-754.85,0.00018835,2]
[350337602,1737802253992,-697.11,0.00018835,2]
[350337603,1737802254002,-507.35,0.00018835,2]
[350337604,1737802254012,-500.0,0.00018835,2]
[350337605,1737802254022,-500.0,0.00018835,2]
[350337606,1737802254031,-1533.71,0.00018835,2]
[350337607,1737802254041,-660.4,0.00018835,2]
[350337608,1737802254050,-500.0,0.00018835,2]
[350337609,1737802254060,-2059.31902583,0.00018866,2]
[350337610,1737802254069,-667.96,0.00018877,2]
[350337611,1737802254080,-500.0,0.00018898,2]
[350337612,1737802254089,-500.0,0.00018898,2]
[350337613,1737802254098,-500.0,0.00018898,2]
[350337614,1737802254107,-500.0,0.00018898,2]
[350337615,1737802254117,-500.0,0.00018898,2]
[350337616,1737802254127,-500.0,0.00018898,2]
[350337617,1737802254136,-500.0,0.00018898,2]
[350337618,1737802254146,-500.0,0.00018898,2]
[350337619,1737802254155,-500.0,0.00018898,2]
[350337620,1737802254165,-500.0,0.00018898,2]
[350337621,1737802254174,-500.0,0.00018898,2]
[350337622,1737802254183,-500.0,0.00018898,2]
[350337623,1737802254192,-500.0,0.00018898,2]
[350337624,1737802254203,-1115.57,0.00018898,2]
[350337625,1737802254215,-500.0,0.00018898,2]
[350337626,1737802254225,-500.0,0.00018898,2]
[350337627,1737802254234,-823.1,0.00018898,2]
[350337628,1737802254247,-568.87,0.00018898,2]
[350337629,1737802254259,-151.0,0.00018898,2]
[350337630,1737802254269,-192.72036,0.00018898,2]
[350337631,1737802254283,-151.0,0.00018898,2]
[350337632,1737802254299,-994.33,0.00018898,2]
[350337633,1737802254310,-885.18,0.00018898,2]
[350337634,1737802254319,-500.0,0.00018899,2]
[350337635,1737802254331,-316.62,0.00018899,2]
[350337636,1737802254341,-500.0,0.00018899,2]
[350337637,1737802254351,-150.0,0.00018899,2]
[350337638,1737802254360,-2300.0,0.000189,6]
[350337639,1737802254371,-200.0,0.00018929,2]
[350337640,1737802254380,-3056.4994659,0.00018941,2]
[350337641,1737802254389,-178.58,0.00018962,2]
[350337642,1737802254399,-500.0,0.00018971,2]
[350337643,1737802254408,-500.0,0.00018971,2]